Cogmind - Beta 16 @@@ ROGUE MODE // 2025.11.19 @ 08:18:35 Player: VivI Result: Destroyed by Y-45 Defender with Beam Rifle Performance ------------- Evolutions (1) 500 Regions Visited (3) 600 Robots Destroyed (32) 160 Value Destroyed (713) 713 Prototype IDs (1) 20 Alien Tech Used (0) 0 Bonus (23) 23 TOTAL SCORE: 2016 Bonus ------- High Alert Combat Kills 23 Cogmind --------- Core Integrity 0/400 Matter 174/300 Energy 72/100 System Corruption 0% Temperature Cool (9) Movement Core (50) Location -9/Mines Parts ------- > --- POWER (1) -------- (None) > --- PROPULSION (2) --- (None) > --- UTILITY (4) ------ Signal Interpreter Advanced Targeting Computer > --- WEAPON (2) ------- Beam Rifle > --- INVENTORY (5) ---- (None) Peak State ------------ > --- POWER ------------ Improved Ion Engine > --- PROPULSION ------- Aluminum Leg Aluminum Leg > --- UTILITY ---------- Small Storage Unit Signal Interpreter Improved Terrain Scanner Advanced Targeting Computer > --- WEAPON ----------- Improved Assault Rifle Improved Assault Rifle > --- INVENTORY -------- Light Ion Engine Aluminum Leg Aluminum Leg Improved Assault Rifle Improved Assault Rifle [Rating: 18] Favorites ----------- Power Improved Ion Engine Engine Improved Ion Engine Propulsion Aluminum Leg Leg Aluminum Leg Utility Small Storage Unit Device Sensor Array Storage Small Storage Unit Processor Signal Interpreter Weapon Improved Assault Rifle Energy Gun Medium Laser Ballistic Gun Improved Assault Rifle Launcher Grenade Launcher Build | -11 -10 -9 -9 ------- Run | Yrd Mat Mat Min Slots Evolved 2 | . . 2 . Power . | . . . . Propulsion . | . . . . Utility 2 | . . 2 . Weapon . | . . . . Parts Attached 24 | 7 1 9 7 Power 4 | 2 . 1 1 Engine 4 | 2 . 1 1 Core . | . . . . Reactor . | . . . . Propulsion 5 | 2 . 1 2 Treads . | . . . . Leg 5 | 2 . 1 2 Wheel . | . . . . Hover . | . . . . Flight . | . . . . Utility 5 | 1 . 3 1 Device 2 | . . 1 1 Storage 1 | 1 . . . Processor 2 | . . 2 . Hackware . | . . . . Protection . | . . . . Artifact . | . . . . Weapon 10 | 2 1 4 3 Energy Gun 2 | 1 . . 1 Energy Cannon . | . . . . Ballistic Gun 7 | 1 . 4 2 Ballistic Cannon . | . . . . Launcher 1 | . 1 . . Special Weapon . | . . . . Impact Weapon . | . . . . Slashing Weapon . | . . . . Piercing Weapon . | . . . . Special Melee Weapon . | . . . . Unidentified Prototypes 1 | . . 1 . Parts Lost 17 | . . 4 13 Power 4 | . . 1 3 Propulsion 5 | . . 1 4 Utility 2 | . . . 2 Weapon 6 | . . 2 4 Highest Loss Streak 8 | . . 4 8 To Critical Strikes . | . . . . Average Backups 3 | 1 3 3 2 Power . | . 1 1 . Propulsion . | . . . . Utility . | . 1 . . Weapon 1 | . . 1 . Tool/Special . | . . . . Unused Backups 2 | . . 2 . Power . | . . . . Propulsion . | . . . . Utility 1 | . . 1 . Weapon 1 | . . 1 . Tool/Special . | . . . . Average Slot Usage (%) 82 | . 85 91 72 Engine 10 | . 14 9 8 Leg 21 | . 28 20 15 Device 5 | . . 11 5 Storage 9 | . 14 11 4 Processor 13 | . . 18 22 Energy Gun 5 | . 14 2 . Ballistic Gun 11 | . 1 15 16 Launcher 4 | . 12 1 . Peak Build Rating 18 | 6 6 17 18 Average Rating 10 | 3 6 12 12 On Entrance 7 | . 6 6 16 Avg Prop Armor Cover (%) . | . . . . Naked Turns . | . . . . Heaviest Build 19 | 13 15 19 19 Greatest Support 20 | 20 20 20 20 Greatest Overweight (x) 1 | . . 1 . Average Overweight (x) . | . . . . Largest Inventory Capacity 8 | 8 8 8 8 Average Capacity 7 | 6 8 8 6 Most Carried 6 | 5 5 5 6 Average Carried 3 | 1 3 3 2 Final Capacity 8 | 8 8 8 5 Final Carried 5 | 1 5 5 . Class Distribution -------------------- 100% | Mutant Dominant Class ---------------- Mutant | -10/Materials Mutant | -9/Materials Mutant | -9/Mines Resources | -11 -10 -9 -9 ----------- Run | Yrd Mat Mat Min Matter Collected 710 | 232 89 129 260 Remotely . | . . . . Salvage Created 604 | . 192 153 259 Parts 53 | . 15 19 19 Haulers Intercepted . | . . . . Recyclers Shooed 3 | . 2 1 . Parts Field Recycled . | . . . . Retrieved Matter . | . . . . Parts Self-Destructed . | . . . . Prevented . | . . . . Parts Restored . | . . . . Kills | -11 -10 -9 -9 ------- Run | Yrd Mat Mat Min Combat Hostiles Destroyed 23 | . 9 5 9 Melee 1 | . . . 1 Guns 13 | . . 5 8 AOE 9 | . 9 . . Classes Destroyed 8 | . 7 1 . Worker 1 | . 1 . . Builder 3 | . 1 2 . Tunneler 2 | . 1 . 1 Operator 1 | . 1 . . Watcher 2 | . 2 . . Swarmer 13 | . 3 3 7 Grunt 7 | . 6 1 . Sentry 2 | . . 1 1 Best Kill Streak 7 | . 7 3 5 Combat Bots Only 4 | . 3 3 4 Max Kills in Single Turn 3 | . 3 1 1 Gunslinging . | . . . . Exploded 3 | . 3 . . Melee 1 | . . . 1 Uniques/NPCs Destroyed 1 | . . . 1 YI-UF0 (-9/Mines) Combat | -11 -10 -9 -9 -------- Run | Yrd Mat Mat Min Hostile Shots Fired 136 | . 16 30 90 Missed 41 | . 3 8 30 Hits 95 | . 13 22 60 Projectile 95 | . 13 22 60 AOE 27 | . . . 27 Critical Strikes 3 | . 2 . 1 Damage Taken 2023 | . 359 272 1392 Core 427 | . 18 18 391 Absorbed by Shields . | . . . . Core Remaining (%) 96 | 100 92 . . Volleys Fired 86 | . 28 28 30 Largest 2 | . 1 2 2 Hottest 70 | . 50 70 56 Shots Fired 120 | . 28 40 52 Gun 94 | . 5 37 52 Cannon . | . . . . Launcher 26 | . 23 3 . Special . | . . . . Kinetic 87 | . . 36 51 Thermal 7 | . 5 1 1 Explosive 26 | . 23 3 . Electromagnetic . | . . . . Robot Hit Streak 9 | . 2 5 9 Robot Miss Streak 2 | . 2 2 2 Penetration Max . | . . . . Secondary Targets 3 | . . . 3 Max Gunslinging Chain 1 | . . . 1 Shots Hit Robots 64 | . 3 25 36 Core Hits 55 | . 28 11 16 Critical Kills . | . . . . Critical Parts Destroyed . | . . . . Critical Strikes . | . . . . Melee Attacks . | . . . . Impact . | . . . . Slashing . | . . . . Piercing . | . . . . Sneak Attacks . | . . . . Combat Hostiles . | . . . . Follow-up Attacks . | . . . . Damage Inflicted 2175 | . 1097 457 621 Guns 920 | . 24 311 585 Cannons . | . . . . Explosions 1219 | . 1073 146 . Melee . | . . . . Ramming 36 | . . . 36 Kinetic 882 | . . 311 571 Thermal 242 | . 228 . 14 Explosive 1015 | . 869 146 . Electromagnetic . | . . . . Impact . | . . . . Slashing . | . . . . Piercing . | . . . . Highest Corruption . | . . . . Average Corruption . | . . . . Corruption Purged . | . . . . Corruption Blocked . | . . . . Overload Shots . | . . . . Overflow Damage 12 | . 12 . . Projectiles . | . . . . Explosions 12 | . 12 . . Melee . | . . . . Knockbacks . | . . . . Impact . | . . . . Kinetic . | . . . . Secondary . | . . . . Self-Inflicted Damage 196 | . 178 . 18 Shots 4 | . 4 . . Rammed 10 | . . . 10 Targets Rammed 10 | . . . 10 Kicked . | . . . . Crushed . | . . . . Highest Temperature 30 | . 30 15 24 Average Temperature 12 | . 12 8 10 Received Heat Transfer 339 | . 138 66 135 Siege Activations . | . . . . Martial Activations . | . . . . Shielding Activations . | . . . . Robots Disrupted . | . . . . Combat Hostiles . | . . . . Robots Corrupted . | . . . . Combat Hostiles . | . . . . Parts Fried . | . . . . Impact Corruptions . | . . . . Robots Melted . | . . . . Combat Hostiles . | . . . . Parts Melted 2 | . 2 . . Heat Transferred 261 | . 224 . 37 Parts Sabotaged . | . . . . Parts Stolen . | . . . . Parts Stripped . | . . . . Power Chain Reactions . | . . . . Alert | -11 -10 -9 -9 ------- Run | Yrd Mat Mat Min Maximum Alert Level 2 | . 2 . . Low Security (%) 75 | 100 15 100 100 Level 1 13 | . 45 . . Level 2 11 | . 38 . . Level 3 . | . . . . Level 4 . | . . . . Level 5 . | . . . . High Security . | . . . . Max Security . | . . . . Peak Influence 469 | . 469 189 130 Initial 189 | . . 189 40 Average 151 | . 309 139 50 Influence Increases 976 | . 599 147 230 Destroy 0b10 Robot/C 440 | . 180 100 160 Destroy 0b10 Robot/NC 45 | . 30 10 5 Destroy Leader 84 | . 44 20 20 Disable Machine 225 | . 225 . . Destroy Structure 137 | . 120 17 . Lose Combat Pursuer 45 | . . . 45 Influence Decreases 944 | . 150 490 304 Entered New Map 326 | . . 260 66 Time Decay 483 | . 150 190 143 Lost Part 135 | . . 40 95 Squads Dispatched 1 | . 1 . . Investigation 1 | . 1 . . Extermination . | . . . . Reinforcement . | . . . . Assault . | . . . . Garrison . | . . . . Intercept . | . . . . Searches Triggered . | . . . . Construction Impeded . | . . . . Haulers Reinforced . | . . . . Active Scanning Responses . | . . . . Cargo Convoy Interrupts . | . . . . Stealth | -11 -10 -9 -9 --------- Run | Yrd Mat Mat Min Distress Signals 2 | . . 2 . Communications Jammed . | . . . . Distress Signals . | . . . . Times Spotted 37 | . 12 12 13 Peak Tracking Total 6 | . 3 6 4 Tactical Retreats 2 | . . . 2 Traps | -11 -10 -9 -9 ------- Run | Yrd Mat Mat Min Traps Triggered 1 | . 1 . . Indirectly . | . . . . Trap Hack Attempts . | . . . . Triggered . | . . . . Disarmed . | . . . . Reprogrammed . | . . . . Reused . | . . . . Traps Extracted . | . . . . Installed . | . . . . Triggered . | . . . . Machines | -11 -10 -9 -9 ---------- Run | Yrd Mat Mat Min Machines Disabled 15 | . 15 . . Max in Single Turn 9 | . 9 . . Machines Repaired . | . . . . Machines Dismantled . | . . . . Machines Sabotaged . | . . . . Overloaded Fab Kills . | . . . . Hacking | -11 -10 -9 -9 --------- Run | Yrd Mat Mat Min Machines Accessed . | . . . . Terminals . | . . . . Fabricators . | . . . . Repair Stations . | . . . . Recycling Units . | . . . . Scanalyzers . | . . . . Garrison Access . | . . . . Total Hacks . | . . . . Successful . | . . . . Failed . | . . . . Catastrophic . | . . . . Database Lockouts . | . . . . Manual . | . . . . Terminals . | . . . . Fabricators . | . . . . Repair Stations . | . . . . Recycling Units . | . . . . Scanalyzers . | . . . . Garrison Access . | . . . . Terminal Hacks . | . . . . Fabricator Hacks . | . . . . Repair Station Hacks . | . . . . Recycling Unit Hacks . | . . . . Scanalyzer . | . . . . Garrison Access Hacks . | . . . . Unauthorized Hacks . | . . . . Terminals . | . . . . Fabricators . | . . . . Repair Stations . | . . . . Recycling Units . | . . . . Scanalyzers . | . . . . Garrison Access . | . . . . Data Cores Recovered . | . . . . Used . | . . . . Hacking Detections . | . . . . Full Trace Events . | . . . . Feedback Events . | . . . . Feedback Blocked . | . . . . Robot Schematics Acquired . | . . . . Robots Built . | . . . . Authchips . | . . . . Time . | . . . . Total Robot Build Rating . | . . . . Part Schematics Acquired . | . . . . Parts Built . | . . . . Authchips . | . . . . Time . | . . . . Total Part Build Rating . | . . . . Part Studies Acquired . | . . . . Parts Repaired . | . . . . Time . | . . . . Parts Recycled . | . . . . Recycled Matter . | . . . . Retrieved Matter . | . . . . Retrieved Components . | . . . . Parts Scanalyzed . | . . . . Part Schematics Acquired . | . . . . Parts Damaged . | . . . . Bothacking | -11 -10 -9 -9 ------------ Run | Yrd Mat Mat Min Used RIF Installer . | . . . . Robots Hacked . | . . . . Non-combat . | . . . . Combat . | . . . . Robot Hacks Applied . | . . . . Relay Couplers Released . | . . . . Fabnet Peak Effective % . | . . . . Robots Rewired . | . . . . Allies Hacked . | . . . . Hacks Repelled . | . . . . Allies | -11 -10 -9 -9 -------- Run | Yrd Mat Mat Min Total Allies . | . . . . Largest Group . | . . . . Highest-Rated Group . | . . . . Highest-Rated Ally . | . . . . Total Orders . | . . . . Ally Attacks . | . . . . Total Damage . | . . . . Kills . | . . . . Allies Corrupted . | . . . . Allies Melted . | . . . . Intel | -11 -10 -9 -9 ------- Run | Yrd Mat Mat Min Active Infowar (turns) 494 | . . 331 163 Sensors 331 | . . 331 . Terrain 163 | . . . 163 Robot Analysis Total . | . . . . Derelict Logs Recovered 2 | . . . 2 Drone Launches . | . . . . Drone Recoveries . | . . . . Exploration | -11 -10 -9 -9 ------------- Run | Yrd Mat Mat Min Turns Passed 1200 | 56 344 388 412 Spaces Moved 727 | 47 216 247 217 Core 118 | 20 . . 98 Treads . | . . . . Legs 609 | 27 216 247 119 Wheels . | . . . . Hover . | . . . . Flight . | . . . . Fastest Speed 50 | 50 120 120 50 Average Speed 108 | 90 120 120 88 Slowest Speed 190 | 120 120 190 120 Overloaded Moves . | . . . . Propulsion Burnouts . | . . . . Robots Hopped . | . . . . Potential Cave-ins . | . . . . Cave-ins Triggered . | . . . . Exploration Rate (%) 34 | 3 47 30 56 Regions Visited 3 Branch Regions 1 Pre-discovered Areas . | . . . . Known Exits Taken 1 | . . 1 . Unknown Exits Taken 2 | 1 1 . . Scrap Searched . | . . . . Spaces Dug . | . . . . Terrain Destroyed 160 | . 130 30 . Melee . | . . . . Projectile . | . . . . AOE 160 | . 130 30 . Terrain Rammed . | . . . . Walls Destroyed . | . . . . Machines Disabled . | . . . . Actions | -11 -10 -9 -9 --------- Run | Yrd Mat Mat Min Total 1019 | 59 272 301 387 Wait 142 | . 24 . 118 Move 724 | 46 215 246 217 Hop . | . . . . Pick Up 25 | 6 4 12 3 Fast Attach 1 | 1 . . . Attach 20 | 5 . 7 8 Detach . | . . . . Swap 5 | 1 1 3 . Drop 6 | . . 5 1 Fire 86 | . 28 28 30 Melee . | . . . . Ram 10 | . . . 10 Kick . | . . . . Crush . | . . . . Escape Stasis . | . . . . Rewire . | . . . . Trap . | . . . . Miscellaneous . | . . . . Route ------- -11/Scrapyard -10/Materials (discovered 3 exits: [*Mat x2] / [*Min]) -9/Materials -9/Mines History --------- Turn | Location | Event 7 | -11/Scrapyard | Discovered new exit (range 15) 57 | -11/Scrapyard | Entered Materials 153 | -10/Materials | Discovered new exit (range 12) 302 | -10/Materials | Build established: Mutant 305 | -10/Materials | Discovered new exit (range 7) 377 | -10/Materials | Discovered new exit (range 15) 401 | -10/Materials | Entered another Materials area 401 | -9/Materials | Evolved 2 slots: Utility x2 514 | -9/Materials | Lost 4 parts (1p1n2w) 769 | -9/Materials | Discovered new exit (range 13) 788 | -9/Materials | Identified exit to Mines 789 | -9/Materials | Entered Mines 982 | -9/Mines | Core integrity fell below 50% 985 | -9/Mines | Destroyed YI-UF0 1016 | -9/Mines | Lost 8 parts (2p2n2u2w) 1018 | -9/Mines | Learned location of 1 exit from Materials 1080 | -9/Mines | Learned Materials stockpile data 1145 | -9/Mines | Lost 4 parts (2n2w) 1187 | -9/Mines | Core integrity fell below 20% 1201 | -9/Mines | Destroyed by Y-45 Defender with Beam Rifle Last Messages --------------- 01186_ Lgt. Ion Engine destroyed. 01187_ T-07 Excavator is excavating. 01187_ Slammed into Y-45 Defender. 01188_ Destabilizing: System interference. 01188_ Signal Interpreter temporarily disabled. 01189_ T-07 Excavator is excavating. 01190_ Slammed into Y-45 Defender. 01192_ T-07 Excavator is excavating. 01192_ Slammed into Y-45 Defender. 01193_ Signal Interpreter broken. 01193_ Destabilizing: Short circuit. 01193_ T-07 Excavator is excavating. 01194_ Slammed into Y-45 Defender. 01196_ T-07 Excavator is excavating. 01196_ Slammed into Y-45 Defender. 01197_ Y-45 Defender destroyed. 01197_ T-07 Excavator is excavating. 01198_ Acquired 60 matter. 01199_ Acquired Beam Rifle. 01200_ T-07 Excavator is excavating. Map ----- +----------------------------------------------------+ | ???## ##??# #?????????# ??? %??????????????# | | ????# ##?# #?????????## ??# ? ???????????? | | ????## ### ##????????? ??# ###?? ??????????? | | ?????## ##???????? ???####?????????#?????? | | ??????## #??????? #??????????????????????? | | ???????## #??????? ???????????????????????? | | ????????## ##???????????????????????????????? | | ????????## ##????????????????????????????????? | | ???????## ##?????????????????????????????????? | | ??????## ##??????????????????????????????????? | | ?????## ##???????? ?????????????????????????? | | ?????# #?????? ???????????????????????????? | | ?????### ##### #?????????????????????????????? | | ???????## #?????????????????????????????? | | ????????## ### #??????????????????????????????? | | ????????# #??????????????????????????????? | | ????????# ######??????????????????????????????? | | ????????# ###??????????#####????????????????????? | | ????????# #????????????# ?????????????????????? | | ????????# #???????????## t ?????????????????????? | | ???# ### ############# #?????????????????????? | | ???# ####??????????????????? | | ?????#### ###### # #??????????????????? | | ????????# ##### ##???##Y t#???????????????????? | | ????????# #??## #????# #???????????????????? | | ????????# #### #????#!@# #???????????????????? | | ????????# #????# *####???????????????????? | | ????????##### """ #????#= ##?????????????????????? | | ????????????# """ ##???# #?????????????????????? | | ????????????# """ #???#####?????????????????????? | | ????????????# #?????????????????????????????? | | ????????????## #?????????????????????????????? | | ?????????????# ##?????????????????????????????? | | ?????????????# #??????????????????????????????? | | ?????????????## ##??????????????????????????????? | | ??????????????###????????????????????????????????? | | ?????????????????????????????????????????????????? | | ?????????????????????????????????????????????????? | | ?????????????????????????????????????????????????? | | ?????????????????????????????????????????????????? | | ?????????????????????????????????????????????????? | | | | | | | | | | | | | | | | | | | +----------------------------------------------------+ Best States ------------- Heat Dissipation 28 Energy Generation 12 Energy Capacity 265 Matter Stores 262 Matter Capacity 300 Sight Range 16 Robot Scan Range 14 Terrain Scan Range 16 Terrain Scan Density 10 Evasion (%) 55 Targeting Accuracy 8 Item Schematics ----------------- None Robot Schematics ------------------ None Fabricated ------------ Nothing Repaired ---------- Nothing Studied --------- None Alien Tech Used ----------------- None Achievements -------------- None Challenges ------------ None Game ------ Seed DecoderThermicDeflector Manual? 0 Play Time 00:13:48 Cumulative 9.2 hours Start 2025.11.19 @ 08:04:04 End 2025.11.19 @ 08:18:35 Sessions 1 Manual Loads 0 Difficulty Rogue Special Mode None Game No. 20 Rogue 9 Adventurer 11 Explorer 0 Win Type - Total 0 Types 0/0/0/0/0/0/0/0/0/0 Lore% 4 Gallery% 16 Achievement% 11 Wizard Run 0 Options --------- Layout 2 ASCII 0 Keyboard 0 Movement Mouse Keybinds 0 Fullscreen 2 Font 24/Smallcaps Map View 50x44 Zoom Use 0% Tactical HUD 1 Map Filters NONE Filters NONE Steam 1 RUN: 07d850c7-7e50-481f-85e6-4e009d2b2849